Cogmind - Beta 17 @@@ ROGUE MODE // 2026.07.27 @ 20:36:33 Player: kite Result: Self-destructed Performance ------------- Evolutions (2) 1000 Regions Visited (5) 1000 Robots Destroyed (28) 140 Value Destroyed (555) 555 Prototype IDs (0) 0 Alien Tech Used (0) 0 Bonus (0) 0 TOTAL SCORE: 2695 Bonus ------- None Cogmind --------- Core Integrity 519/550 Matter 225/300 Energy 100/100 System Corruption 0% Temperature Cool (9) Movement Treading (160) Location -8/Materials Parts ------- > --- POWER (1) -------- (None) > --- PROPULSION (4) --- Light Treads Light Treads Light Treads > --- UTILITY (3) ------ Large Storage Unit > --- WEAPON (3) ------- Light Assault Rifle Light Assault Rifle Mining Claw > --- INVENTORY (15) --- Ion Engine Ion Engine Light Ion Engine Aluminum Leg High-capacity Battery (250) Large Matter Pod (150) Structural Scanner Light Assault Rifle Light Assault Rifle Light Assault Rifle Light Assault Rifle Plasma Cutter Peak State ------------ > --- POWER ------------ Deuterium Engine > --- PROPULSION ------- Light Treads Light Treads > --- UTILITY ---------- Large Storage Unit Propulsion Shielding > --- WEAPON ----------- Gatling Laser Light Assault Rifle Light Assault Rifle > --- INVENTORY -------- Ion Engine Ion Engine Light Ion Engine Light Treads Aluminum Leg High-capacity Battery Large Matter Pod Structural Scanner Light Assault Rifle Light Assault Rifle Light Assault Rifle Mining Claw [Rating: 14] Favorites ----------- Power Ion Engine Engine Ion Engine Propulsion Light Treads Treads Light Treads Utility Large Storage Unit Storage Large Storage Unit Hackware Hacking Suite Protection Propulsion Shielding Weapon Light Assault Rifle Energy Gun Gatling Laser Ballistic Gun Light Assault Rifle Slashing Weapon Mining Claw Build | -11 -10 -10 -10 -9 -8 ------- Run | Yrd Mat Min Exi Min Mat Slots Evolved 4 | . . . . . 4 Power . | . . . . . . Propulsion 2 | . . . . . 2 Utility 1 | . . . . . 1 Weapon 1 | . . . . . 1 Parts Attached 19 | 6 3 1 . 2 7 Power 2 | 1 . . . . 1 Engine 2 | 1 . . . . 1 Core . | . . . . . . Reactor . | . . . . . . Propulsion 5 | 2 . . . . 3 Treads 5 | 2 . . . . 3 Leg . | . . . . . . Wheel . | . . . . . . Hover . | . . . . . . Flight . | . . . . . . Utility 5 | 1 3 . . 1 . Device . | . . . . . . Storage 2 | 1 1 . . . . Processor . | . . . . . . Hackware 1 | . 1 . . . . Protection 2 | . 1 . . 1 . Artifact . | . . . . . . Weapon 7 | 2 . 1 . 1 3 Energy Gun 1 | . . . . . 1 Energy Cannon . | . . . . . . Ballistic Gun 5 | 2 . 1 . 1 1 Ballistic Cannon . | . . . . . . Launcher . | . . . . . . Special Weapon . | . . . . . . Impact Weapon . | . . . . . . Slashing Weapon 1 | . . . . . 1 Piercing Weapon . | . . . . . . Special Melee Weapon . | . . . . . . Unidentified Prototypes . | . . . . . . Parts Lost 6 | . . 1 . 1 4 Power 1 | . . . . . 1 Propulsion 2 | . . . . . 2 Utility 2 | . . . . 1 1 Weapon 1 | . . 1 . . . Highest Loss Streak 2 | . . 1 . 1 2 To Critical Strikes . | . . . . . . Average Backups 8 | 2 6 8 8 11 12 Power 1 | . 1 1 1 1 2 Propulsion 2 | 1 2 2 2 2 1 Utility 2 | . 1 3 3 3 3 Weapon 2 | . 1 2 2 3 4 Tool/Special . | . . . . . . Unused Backups 11 | . 1 . . 1 9 Power 2 | . . . . . 2 Propulsion 2 | . 1 . . . 1 Utility 3 | . . . . . 3 Weapon 3 | . . . . 1 2 Tool/Special 1 | . . . . . 1 Average Slot Usage (%) 95 | . 99 99 100 100 69 Engine 13 | . 14 14 14 14 9 Treads 26 | . 28 28 28 28 18 Storage 13 | . 14 14 14 14 9 Hackware 4 | . 11 . . . . Protection 8 | . 1 14 14 14 9 Ballistic Gun 27 | . 28 27 28 28 23 Peak Build Rating 14 | 6 9 7 7 8 14 Average Rating 8 | 5 8 6 7 7 10 On Entrance 5 | . 6 7 7 7 8 Avg Prop Armor Cover (%) . | . . . . . . Naked Turns . | . . . . . . Heaviest Build 36 | 13 29 29 28 28 36 Greatest Support 60 | 40 40 40 40 40 60 Greatest Overweight (x) 1 | . . . . . 1 Average Overweight (x) . | . . . . . . Largest Inventory Capacity 15 | 8 15 15 15 15 15 Average Capacity 12 | 7 8 15 15 15 15 Most Carried 13 | 4 9 9 9 12 13 Average Carried 8 | 2 6 8 8 11 12 Final Capacity 15 | 8 15 15 15 15 15 Final Carried 12 | 4 9 8 9 12 12 Class Distribution -------------------- 91% | Mutant 5% | Tank Dominant Class ---------------- Mutant | -10/Materials Mutant | -10/Mines Mutant | -10/Exiles Mutant | -9/Mines Tank | -8/Materials Resources | -11 -10 -10 -10 -9 -8 ----------- Run | Yrd Mat Min Exi Min Mat Matter Collected 781 | 87 302 31 254 57 50 Remotely . | . . . . . . Salvage Created 868 | 101 412 31 . 130 194 Parts 71 | 7 27 4 . 18 15 Haulers Intercepted . | . . . . . . Recyclers Shooed 2 | . 1 . . . 1 Parts Field Recycled . | . . . . . . Retrieved Matter . | . . . . . . Parts Self-Destructed . | . . . . . . Prevented . | . . . . . . Parts Restored . | . . . . . . Kills | -11 -10 -10 -10 -9 -8 ------- Run | Yrd Mat Min Exi Min Mat Combat Hostiles Destroyed 21 | . 9 2 . 5 5 Guns 21 | . 9 2 . 5 5 Classes Destroyed 8 | 2 3 . . . 3 Worker 1 | . . . . . 1 Tunneler 2 | 1 . . . 1 . Recycler 2 | 1 1 . . . . Operator 1 | . 1 . . . . Watcher 1 | . . . . . 1 Swarmer 11 | . 3 2 . 3 3 Grunt 9 | . 6 . . 2 1 Sentry 1 | . . . . . 1 Best Kill Streak 3 | 2 2 1 . 3 3 Combat Bots Only 3 | . 2 1 . 3 3 Max Kills in Single Turn 1 | 1 1 1 . 1 1 Gunslinging . | . . . . . . Exploded . | . . . . . . Melee . | . . . . . . Uniques/NPCs Destroyed . | . . . . . . Combat | -11 -10 -10 -10 -9 -8 -------- Run | Yrd Mat Min Exi Min Mat Hostile Shots Fired 160 | . 25 30 . 47 58 Missed 53 | . 9 11 . 16 17 Hits 107 | . 16 19 . 31 41 Projectile 107 | . 16 19 . 31 41 Critical Strikes 2 | . 1 . . 1 . Actively Blocked 1 | . . . . 1 . Damage Taken 1206 | . 206 155 . 319 526 Core 154 | . 50 16 . 57 31 Absorbed by Shields . | . . . . . . Redirected to Shielding 102 | . . 10 . 46 46 Regen/Repaired (Parts) 20 | . . . . . 20 Core Remaining (%) 75 | 100 . . . 50 . Volleys Fired 110 | 6 42 14 . 21 27 Largest 3 | 2 2 2 . 2 3 Hottest 60 | 40 40 40 . 40 60 Shots Fired 232 | 12 84 23 . 42 71 Gun 232 | 12 84 23 . 42 71 Cannon . | . . . . . . Launcher . | . . . . . . Special . | . . . . . . Kinetic 232 | 12 84 23 . 42 71 Thermal . | . . . . . . Explosive . | . . . . . . Electromagnetic . | . . . . . . Robot Hit Streak 13 | 8 13 5 . 8 10 Robot Miss Streak 4 | 1 3 3 . 3 4 Penetration Max . | . . . . . . Secondary Targets 5 | . 1 . . 2 2 Max Gunslinging Chain 1 | . 1 . . 1 1 Shots Hit Robots 147 | 9 59 10 . 28 41 Core Hits 71 | 4 29 5 . 11 22 Critical Kills 1 | 1 . . . . . Critical Parts Destroyed 1 | . 1 . . . . Critical Strikes 2 | 1 1 . . . . Destroy 2 | 1 1 . . . . Melee Attacks 1 | . . . . . 1 Impact . | . . . . . . Slashing 1 | . . . . . 1 Piercing . | . . . . . . Sneak Attacks . | . . . . . . Combat Hostiles . | . . . . . . Follow-up Attacks . | . . . . . . Damage Inflicted 1359 | 105 576 84 . 218 376 Guns 1359 | 105 576 84 . 218 376 Cannons . | . . . . . . Explosions . | . . . . . . Melee . | . . . . . . Ramming . | . . . . . . Kinetic 1359 | 105 576 84 . 218 376 Thermal . | . . . . . . Explosive . | . . . . . . Electromagnetic . | . . . . . . Impact . | . . . . . . Slashing . | . . . . . . Piercing . | . . . . . . Highest Corruption . | . . . . . . Average Corruption . | . . . . . . Corruption Purged . | . . . . . . Corruption Blocked . | . . . . . . Overload Shots . | . . . . . . Overflow Damage . | . . . . . . Projectiles . | . . . . . . Explosions . | . . . . . . Melee . | . . . . . . Knockbacks . | . . . . . . Impact . | . . . . . . Kinetic . | . . . . . . Secondary . | . . . . . . Self-Inflicted Damage . | . . . . . . Shots . | . . . . . . Rammed . | . . . . . . Targets Rammed . | . . . . . . Kicked . | . . . . . . Crushed . | . . . . . . Highest Temperature 77 | . 27 . . 30 77 Average Temperature 13 | . 9 . . 10 15 Received Heat Transfer 435 | . 123 . . 96 216 Siege Activations . | . . . . . . Martial Activations . | . . . . . . Shielding Activations . | . . . . . . Robots Disrupted . | . . . . . . Combat Hostiles . | . . . . . . Robots Corrupted . | . . . . . . Combat Hostiles . | . . . . . . Parts Fried . | . . . . . . Impact Corruptions . | . . . . . . Robots Melted . | . . . . . . Combat Hostiles . | . . . . . . Parts Melted . | . . . . . . Heat Transferred . | . . . . . . Parts Sabotaged . | . . . . . . Parts Stolen . | . . . . . . Parts Stripped . | . . . . . . Power Chain Reactions . | . . . . . . Alert | -11 -10 -10 -10 -9 -8 ------- Run | Yrd Mat Min Exi Min Mat Maximum Alert Level . | . . . . . . Low Security (%) 100 | 100 100 100 . 100 100 Level 1 . | . . . . . . Level 2 . | . . . . . . Level 3 . | . . . . . . Level 4 . | . . . . . . Level 5 . | . . . . . . High Security . | . . . . . . Max Security . | . . . . . . Peak Influence 100 | 10 100 30 . 60 65 Initial . | . . . . . . Average 17 | . 27 3 . 12 26 Influence Increases 564 | 10 242 50 . 115 147 Destroy 0b10 Robot/C 420 | . 180 40 . 100 100 Destroy 0b10 Robot/NC 35 | 10 10 . . 5 10 Destroy Leader 82 | . 40 10 . 10 22 Successful Hack 12 | . 12 . . . . Lose Combat Pursuer 15 | . . . . . 15 Influence Decreases 562 | 10 242 50 . 115 145 Time Decay 527 | 10 242 40 . 115 120 Lost Part 35 | . . 10 . . 25 Squads Dispatched 5 | . 3 . . . 2 Investigation 2 | . 2 . . . . Extermination . | . . . . . . Reinforcement 2 | . 1 . . . 1 Assault . | . . . . . . Garrison 1 | . . . . . 1 Intercept . | . . . . . . Searches Triggered . | . . . . . . Construction Impeded . | . . . . . . Haulers Reinforced . | . . . . . . Active Scanning Responses . | . . . . . . Cargo Convoy Interrupts . | . . . . . . Stealth | -11 -10 -10 -10 -9 -8 --------- Run | Yrd Mat Min Exi Min Mat Distress Signals 4 | . 1 . . . 3 Communications Jammed . | . . . . . . Distress Signals . | . . . . . . Times Spotted 42 | . 18 3 . 6 15 Peak Tracking Total 9 | . 4 3 . 3 9 Tactical Retreats 1 | . . . . . 1 Traps | -11 -10 -10 -10 -9 -8 ------- Run | Yrd Mat Min Exi Min Mat Traps Triggered . | . . . . . . Indirectly . | . . . . . . Trap Hack Attempts . | . . . . . . Triggered . | . . . . . . Disarmed . | . . . . . . Reprogrammed . | . . . . . . Reused . | . . . . . . Traps Extracted . | . . . . . . Installed . | . . . . . . Triggered . | . . . . . . Machines | -11 -10 -10 -10 -9 -8 ---------- Run | Yrd Mat Min Exi Min Mat Machines Disabled . | . . . . . . Max in Single Turn . | . . . . . . Machines Repaired . | . . . . . . Machines Dismantled . | . . . . . . Machines Sabotaged . | . . . . . . Overloaded Fab Kills . | . . . . . . Hacking | -11 -10 -10 -10 -9 -8 --------- Run | Yrd Mat Min Exi Min Mat Machines Accessed 4 | . 2 . 1 . 1 Terminals 2 | . 2 . . . . Fabricators . | . . . . . . Repair Stations 1 | . . . . . 1 Recycling Units . | . . . . . . Scanalyzers . | . . . . . . Garrison Access . | . . . . . . Total Hacks 10 | . 4 . 4 . 2 Successful 8 | . 2 . 4 . 2 Failed 2 | . 2 . . . . Catastrophic 1 | . 1 . . . . Database Lockouts . | . . . . . . Manual 5 | . 5 . . . . Terminals 4 | . 4 . . . . Fabricators . | . . . . . . Repair Stations 2 | . . . . . 2 Recycling Units . | . . . . . . Scanalyzers . | . . . . . . Garrison Access . | . . . . . . Terminal Hacks 6 | . 2 . 4 . . Record 4 | . . . 4 . . Part Schematic 1 | . 1 . . . . Branch Access Points 1 | . 1 . . . . Fabricator Hacks . | . . . . . . Repair Station Hacks 2 | . . . . . 2 Scan Component 1 | . . . . . 1 Repair 1 | . . . . . 1 Recycling Unit Hacks . | . . . . . . Scanalyzer . | . . . . . . Garrison Access Hacks . | . . . . . . Unauthorized Hacks . | . . . . . . Terminals . | . . . . . . Fabricators . | . . . . . . Repair Stations . | . . . . . . Recycling Units . | . . . . . . Scanalyzers . | . . . . . . Garrison Access . | . . . . . . Data Cores Recovered 1 | . 1 . . . . Used 1 | . 1 . . . . Hacking Detections 3 | . 2 . . . 1 Full Trace Events 2 | . 2 . . . . Feedback Events . | . . . . . . Feedback Blocked . | . . . . . . Robot Schematics Acquired . | . . . . . . Robots Built . | . . . . . . Authchips . | . . . . . . Time . | . . . . . . Total Robot Build Rating . | . . . . . . Part Schematics Acquired 1 | . 1 . . . . Parts Built . | . . . . . . Authchips . | . . . . . . Time . | . . . . . . Total Part Build Rating . | . . . . . . Part Studies Acquired . | . . . . . . Parts Repaired 1 | . . . . . 1 Time 32 | . . . . . 32 Parts Recycled . | . . . . . . Recycled Matter . | . . . . . . Retrieved Matter . | . . . . . . Retrieved Components . | . . . . . . Parts Scanalyzed . | . . . . . . Part Schematics Acquired . | . . . . . . Parts Damaged . | . . . . . . Bothacking | -11 -10 -10 -10 -9 -8 ------------ Run | Yrd Mat Min Exi Min Mat Used RIF Installer . | . . . . . . Robots Hacked . | . . . . . . Non-combat . | . . . . . . Combat . | . . . . . . Robot Hacks Applied . | . . . . . . Relay Couplers Released . | . . . . . . Fabnet Peak Effective % . | . . . . . . Robots Rewired . | . . . . . . Allies Hacked . | . . . . . . Hacks Repelled . | . . . . . . Allies | -11 -10 -10 -10 -9 -8 -------- Run | Yrd Mat Min Exi Min Mat Total Allies 2 | . . . . 2 . Largest Group 2 | . . . . 2 2 Highest-Rated Group 43 | . . . . 43 43 Highest-Rated Ally 31 | . . . . 31 31 Total Orders . | . . . . . . Ally Attacks 8 | . . . . . 8 Total Damage 41 | . . . . . 41 Kills . | . . . . . . Allies Corrupted . | . . . . . . Allies Melted . | . . . . . . Intel | -11 -10 -10 -10 -9 -8 ------- Run | Yrd Mat Min Exi Min Mat Active Infowar (turns) . | . . . . . . Robot Analysis Total . | . . . . . . Derelict Logs Recovered 2 | . . . . 2 . Drone Launches . | . . . . . . Drone Recoveries . | . . . . . . Exploration | -11 -10 -10 -10 -9 -8 ------------- Run | Yrd Mat Min Exi Min Mat Turns Passed 2254 | 134 751 312 301 476 280 Spaces Moved 1167 | 69 366 174 188 258 112 Core 5 | 5 . . . . . Treads 1162 | 64 366 174 188 258 112 Legs . | . . . . . . Wheels . | . . . . . . Hover . | . . . . . . Flight . | . . . . . . Fastest Speed 50 | 50 160 160 160 160 160 Average Speed 159 | 152 160 160 160 160 162 Slowest Speed 240 | 160 160 160 160 160 240 Overloaded Moves . | . . . . . . Propulsion Burnouts . | . . . . . . Robots Hopped . | . . . . . . Potential Cave-ins . | . . . . . . Cave-ins Triggered . | . . . . . . Exploration Rate (%) 35 | 4 59 36 48 57 10 Regions Visited 5 Branch Regions 3 Pre-discovered Areas 1 | . . . 1 . . Known Exits Taken 1 | . 1 . . . . Unknown Exits Taken 4 | 1 . 1 1 1 . Scrap Searched . | . . . . . . Spaces Dug . | . . . . . . Terrain Destroyed . | . . . . . . Melee . | . . . . . . Projectile . | . . . . . . AOE . | . . . . . . Terrain Rammed . | . . . . . . Walls Destroyed . | . . . . . . Machines Disabled . | . . . . . . Actions | -11 -10 -10 -10 -9 -8 --------- Run | Yrd Mat Min Exi Min Mat Total 1365 | 84 456 188 188 288 161 Wait 52 | . 37 . . 3 12 Move 1162 | 68 365 173 187 257 112 Hop . | . . . . . . Pick Up 16 | 4 6 . 1 4 1 Fast Attach 12 | 6 2 . . . 4 Attach 3 | . . 1 . 1 1 Detach . | . . . . . . Swap 4 | . 1 . . 1 2 Drop 5 | . 3 . . 1 1 Fire 110 | 6 42 14 . 21 27 Melee 1 | . . . . . 1 Ram . | . . . . . . Kick . | . . . . . . Crush . | . . . . . . Escape Stasis . | . . . . . . Rewire . | . . . . . . Trap . | . . . . . . Miscellaneous . | . . . . . . Route ------- -11/Scrapyard -10/Materials (discovered 4 exits: [*Mat x2] / *Min x2) -10/Mines -10/Exiles -9/Mines -8/Materials (discovered 1 exit: Fac) History --------- Turn | Location | Event 7 | -11/Scrapyard | Discovered new exit (range 15) 135 | -11/Scrapyard | Entered Materials 172 | -10/Materials | Identified exit to Mines 303 | -10/Materials | Discovered new exit (range 9) 306 | -10/Materials | Build established: Mutant 758 | -10/Materials | Discovered new exit (range 8) 886 | -10/Materials | Entered Mines 1051 | -10/Mines | Assembled infested the area 1088 | -10/Mines | Met 8R-AWN 1192 | -10/Mines | Discovered new exit (range 5) 1198 | -10/Mines | Entered Exiles 1235 | -10/Exiles | Welcomed by 8R-AWN 1264 | -10/Exiles | Met EX-HEX 1328 | -10/Exiles | Met EX-DEC 1336 | -10/Exiles | Learned location of Zion (-6) 1483 | -10/Exiles | Discovered new exit (range 11) 1499 | -10/Exiles | Entered Mines 1578 | -9/Mines | Learned Materials garrison access intel 1697 | -9/Mines | Learned 2 Materials zone layouts 1955 | -9/Mines | Discovered new exit (range 12) 1975 | -9/Mines | Entered Materials 1975 | -8/Materials | Accompanied by 2 allies 1975 | -8/Materials | Evolved 4 slots: Propulsion x2, Utility x1, Weapon x1 1976 | -8/Materials | Identified exit to Factory 1977 | -8/Materials | Loaded intel: 1 garrison access location 1980 | -8/Materials | Led the pair of lost Derelicts to an unsafe place 2035 | -8/Materials | Repaired Plasma Cutter 2236 | -8/Materials | Garrison activated, responded to threat 2255 | -8/Materials | Self-destructed Last Messages --------------- 02222_ K-01 Serf collects debris. 02224_ R-06 Scavenger collects Particle Gun. 02224_ K-01 Serf collects debris. 02229_ W-25 Informer sends out distress signal. 02230_ K-01 Serf collects debris. 02231_ ALERT: Hostiles spotted, dispatching reinforcements to Terminal M006. 02232_ W-25 Informer sends out distress signal. 02234_ K-01 Serf destroyed. 02236_ W-25 Informer calls for garrison support. 02236_ ALERT: Activating Garrison Access M001. 02239_ Destroyed Imp. Hover Unit. 02239_ W-25 Informer sends out distress signal. 02242_ W-25 Informer destroyed. 02242_ Switching to secondary target: G-47 Trooper. 02250_ Propulsion Shielding destroyed. 02250_ K-01 Serf collects debris. 02252_ Deuterium Engine destroyed. 02254_ K-01 Serf collects debris. Map ----- +----------------------------------------------------+ | ???????????????????????????????????????????# """ | | ???????????????????????????????????????????# """ | | ???????????????????????????????????????????# | | ?????????????????????????????????????????####+#### | | ?????????????????????????????????????????# # | | ?????????????????????????????????????????# # | | ?????????????????????????????????????????# # | | ?????????????????????????????????????????# ##### | | ?????????????????????????????????????????# # | | ?????????????????????????????????????????# #*= | | ?????????????????????????????????????????# =+% [ | | ?????????????????????????????????????????# # = | | ?????????????????????????????????????????#% #= | | ?????????????????????????????????????????# # | | ?????????????????????????????????????##### # | | ?????????????????????????????????????#!! # | | ?????????????????????????????????????#!! # | | ??????????????????????????######+#???#[[ ##### | | ??????????????????????????# #???#[ #???? | | ??????????????????????????# #???#[[ #???? | | ??????????????????????????# #???#[[ #?### | | ??????????????????????????# #???##### % #? | | ??????????????????????????? "Y" #???????# # ! | | ?????????????????????????????"" #???????# # | | ???????????????################+########## + "" | | ????????# Y @ % k # "" | | ????????# g * * g # "" | | ????????# g=% g Y % #?### | | ????????? ##########################+#######???? | | ???????????????????????????????????#[[! #??????? | | ???????????????????????????????????# #??????? | | ???????????????????????????????????# """ #??????? | | ???????????????????????????????????# G" #??????? | | ???????## #??????????????????????# """ #??????? | | ??????? # #??????????????????????# #??????? | | ??????? # #??????????????????????## #####??????? | | ??????? # #???????????????????????##???????????? | | ??????? # #????????????#######?????????????????? | | ??????? + #????????????# ?????????????????? | | ??????? # #####????????# """ ?????????????????? | | ???????## #????????# """""?????????????????? | | ??????? # #????????# """""?????????????????? | | ??????? # #????????# """""?????????????????? | | ??????? # #????????# """ ?????????????????? | | ??????? # #????????# ?????????????????? | | ??????? # #????????# ?????????????????? | | ??????? # ##################+#?????????????????? | | ??????? # < ?????????????????? | | ??????? # ?????????????????? | | ???????## ##########+#?????????????????? | +----------------------------------------------------+ Best States ------------- Heat Dissipation 31 Energy Generation 14 Energy Capacity 275 Matter Stores 300 Matter Capacity 300 Sight Range 16 Terrain Scan Density 10 Propulsion Shielding 33 Evasion (%) 40 Recoil Reduction 3 Offensive Hacking 10 Item Schematics ----------------- Cargo Storage Unit | -10/Materials | Hacked Robot Schematics ------------------ None Fabricated ------------ Nothing Repaired ---------- Plasma Cutter | 33% | -8/Materials Studied --------- None Alien Tech Used ----------------- None Achievements -------------- None Challenges ------------ None Game ------ Seed MetamassNuclearFalx Manual? 0 Play Time 00:09:07 Cumulative 501.7 hours Start 2026.07.27 @ 20:29:00 End 2026.07.27 @ 20:36:33 Sessions 1 Manual Loads 0 Difficulty Rogue Special Mode None Game No. 446 Rogue 446 Adventurer 0 Explorer 0 Win Type - Total 13 Types 7/0/3/1/0/0/0/1/0/1 Lore% 63 Gallery% 70 Achievement% 67 Wizard Run 0 Options --------- Layout 1 ASCII 0 Keyboard 0 Movement Mouse Keybinds 0 Fullscreen 2 Font 24/Cog Map View 50x35 Zoom Use 27% Tactical HUD 1 Map Filters NONE Filters NONE Steam 1 RUN: 7f5fdf30-cdaa-427a-a04e-27e2bf9cf42b